fUST/lending_fUST_20250929
["ID","MTS","AMOUNT","RATE_DAILY","PERIOD"]
[388395002,1759152644999,-652.24,0.00025639,2]
[388395003,1759152645008,-167.21951566,0.00025639,2]
[388395004,1759152645018,-174.78667653,0.0002564,5]
[388395005,1759152645028,-480.0,0.0002564,2]
[388395006,1759152645038,-480.0,0.0002564,2]
[388395007,1759152645047,-480.0,0.0002564,2]
[388395008,1759152645060,-1252.07,0.0002564,2]
[388395009,1759152645070,-682.66,0.0002564,2]
[388395010,1759152645080,-1444.33,0.0002564,2]
[388395011,1759152645090,-480.0,0.0002564,2]
[388395012,1759152645099,-1643.05,0.0002564,2]
[388395013,1759152645109,-480.0,0.0002564,2]
[388395014,1759152645118,-480.0,0.0002564,2]
[388395015,1759152645128,-480.0,0.0002564,2]
[388395016,1759152645138,-759.28,0.0002564,2]
[388395017,1759152645148,-480.0,0.0002564,2]
[388395018,1759152645158,-2734.84,0.0002564,2]
[388395019,1759152645167,-1931.59,0.0002564,2]
[388395020,1759152645177,-683.3,0.0002564,2]
[388395021,1759152645187,-480.0,0.0002564,2]
[388395022,1759152645196,-3175.17,0.0002564,2]
[388395023,1759152645206,-890.54,0.0002564,2]
[388395024,1759152645216,-819.15,0.0002564,2]
[388395025,1759152645225,-1249.58,0.0002564,2]
[388395026,1759152645235,-589.81,0.0002564,2]
[388395027,1759152645244,-729.02,0.0002564,2]
[388395028,1759152645254,-480.0,0.0002564,2]
[388395029,1759152645264,-2119.05,0.0002564,2]
[388395030,1759152645273,-1967.32,0.0002564,2]
[388395031,1759152645282,-899.37,0.0002564,2]
[388395032,1759152645291,-3099.79,0.0002564,2]
[388395033,1759152645301,-793.89,0.0002564,2]
[388395034,1759152645311,-480.0,0.0002564,2]
[388395035,1759152645320,-488.01,0.0002564,2]
[388395036,1759152645330,-775.0,0.0002564,2]
[388395037,1759152645340,-480.0,0.00025641,2]
[388395038,1759152645350,-286.95597019,0.00025641,2]
[388395039,1759152645359,-530.29,0.00025641,2]
[388395040,1759152645369,-480.0,0.00025641,2]
[388395041,1759152645379,-500.0,0.00025641,2]
[388395042,1759152645388,-588.0,0.00025644,2]
[388395043,1759152645398,-588.0,0.00025647,7]
[388395044,1759152645408,-151.0,0.000257,19]
[388395045,1759152645418,-151.0,0.000257,13]
[388395046,1759152645428,-500.0,0.00025721,5]
[388395047,1759152645437,-200.0,0.00025729,2]
[388395048,1759152645447,-200.0,0.0002573,2]
[388395049,1759152645457,-480.0,0.0002573,2]
[388395050,1759152645468,-480.0,0.0002573,2]
[388395051,1759152645477,-576.94,0.0002573,2]
[388395052,1759152645486,-639.76,0.0002573,2]
[388395053,1759152645496,-480.0,0.0002573,2]
[388395054,1759152645506,-480.0,0.0002573,2]
[388395055,1759152645515,-480.0,0.0002573,2]
[388395056,1759152645524,-480.0,0.0002573,2]
[388395057,1759152645534,-480.0,0.0002573,2]
[388395058,1759152645544,-480.0,0.0002573,2]
[388395059,1759152645555,-480.0,0.0002573,2]
[388395060,1759152645566,-713.3,0.0002573,2]
[388395061,1759152645576,-480.0,0.0002573,2]
[388395062,1759152645586,-699.85,0.0002573,2]
[388395063,1759152645596,-480.0,0.0002573,2]
[388395064,1759152645610,-1347.76,0.0002573,2]
[388395065,1759152645620,-480.0,0.0002573,2]
[388395066,1759152645630,-480.0,0.0002573,2]
[388395067,1759152645640,-689.18,0.0002573,2]
[388395068,1759152645651,-480.0,0.0002573,2]
[388395069,1759152645661,-811.58,0.0002573,2]
[388395070,1759152645670,-893.04,0.0002573,2]
[388395071,1759152645682,-539.71694254,0.0002573,2]
[388395072,1759152645691,-621.49,0.0002573,2]
[388395073,1759152645701,-621.49,0.0002573,2]
[388395074,1759152645710,-986.6,0.0002573,2]
[388395075,1759152645719,-1725.31,0.0002573,2]
[388395076,1759152645729,-1239.94,0.0002573,2]
[388395077,1759152645738,-1226.86,0.0002573,2]
[388395078,1759152645748,-480.0,0.0002573,2]
[388395079,1759152645758,-480.0,0.0002573,2]
[388395080,1759152645767,-480.0,0.0002573,2]
[388395081,1759152645776,-575.98,0.0002573,2]
[388395082,1759152645786,-1589.3,0.0002573,2]
[388395083,1759152645795,-680.61,0.0002573,2]
[388395084,1759152645805,-480.0,0.0002573,2]
[388395085,1759152645815,-727.71,0.0002573,2]
[388395086,1759152645825,-480.0,0.0002573,2]
[388395087,1759152645835,-665.03,0.0002573,2]
[388395088,1759152645844,-683.64,0.0002573,2]
[388395089,1759152645854,-924.3,0.0002573,2]
[388395090,1759152645863,-480.0,0.0002573,2]
[388395091,1759152645873,-1275.7,0.0002573,2]
[388395092,1759152645883,-700.8,0.0002573,2]
[388395093,1759152645892,-816.02,0.0002573,2]
[388395094,1759152645902,-480.0,0.0002573,2]
[388395095,1759152645911,-480.0,0.0002573,2]
[388395097,1759152645921,-480.0,0.0002573,2]
[388395099,1759152645930,-819.3,0.0002573,2]
[388395101,1759152645940,-1314.06,0.0002573,2]
[388395103,1759152645950,-1029.49,0.0002573,2]
[388395105,1759152645960,-1034.88,0.0002573,2]
[388395106,1759152645970,-480.0,0.0002573,2]
[388395107,1759152645980,-480.0,0.0002573,2]
[388395108,1759152645990,-623.44133263,0.0002573,2]
[388395109,1759152646000,-798.71,0.0002573,2]
[388395110,1759152646009,-480.0,0.0002573,2]
[388395111,1759152646019,-480.0,0.0002573,2]
[388395112,1759152646029,-696.21,0.0002573,2]
[388395113,1759152646038,-679.89,0.0002573,2]
[388395114,1759152646047,-12340.63,0.0002573,2]
[388395115,1759152646058,-480.0,0.0002573,2]
[388395116,1759152646069,-480.0,0.0002573,2]
[388395117,1759152646078,-1290.74,0.0002573,2]
[388395118,1759152646087,-3101.86,0.0002573,2]
[388395119,1759152646097,-480.0,0.0002573,2]
[388395120,1759152646106,-603.4,0.0002573,2]
[388395121,1759152646116,-2803.82,0.0002573,2]
[388395122,1759152646125,-4194.51,0.0002573,2]
[388395123,1759152646134,-930.25,0.0002573,2]
[388395124,1759152646144,-480.0,0.0002573,2]
[388395125,1759152646153,-480.0,0.0002573,2]
[388395126,1759152646163,-2183.53,0.0002573,2]
[388395127,1759152646174,-480.0,0.0002573,2]
[388395128,1759152646192,-1277.56,0.0002573,2]
[388395130,1759152646213,-935.52,0.0002573,2]
[388395131,1759152646232,-480.0,0.0002573,2]
[388395133,1759152646248,-480.0,0.0002573,2]
[388395134,1759152646259,-480.0,0.0002573,2]
[388395135,1759152646270,-1874.59,0.0002573,2]
[388395136,1759152646282,-734.08,0.0002573,2]
[388395137,1759152646293,-480.0,0.0002573,2]
[388395138,1759152646304,-1494.87,0.0002573,2]
[388395139,1759152646313,-1509.69,0.0002573,2]
[388395140,1759152646322,-623.33,0.0002573,2]
[388395142,1759152646331,-480.0,0.0002573,2]
[388395143,1759152646339,-738.74,0.0002573,2]
[388395144,1759152646348,-6590.33,0.0002573,2]
[388395145,1759152646358,-480.0,0.0002573,2]
[388395146,1759152646366,-2706.29,0.0002573,2]
[388395147,1759152646374,-3059.46,0.0002573,2]
[388395148,1759152646383,-593.09,0.0002573,2]
[388395150,1759152646392,-703.42,0.0002573,2]
[388395151,1759152646400,-480.0,0.0002573,2]
[388395152,1759152646409,-1006.91,0.0002573,2]
[388395153,1759152646417,-855.48,0.0002573,2]
[388395154,1759152646426,-1576.42,0.0002573,2]
[388395155,1759152646435,-918.16,0.0002573,2]
[388395156,1759152646444,-2949.84,0.0002573,2]
[388395157,1759152646453,-721.14,0.0002573,2]
[388395158,1759152646463,-192.11414966,0.0002573,2]
[388395159,1759152646472,-6872.91,0.0002573,2]
[388395160,1759152646482,-778.86,0.0002573,2]
[388395161,1759152646490,-921.19,0.0002573,2]
[388395162,1759152646499,-603.12,0.0002573,2]
[388395163,1759152646508,-1307.61,0.0002573,2]
[388395164,1759152646517,-480.0,0.0002573,2]
[388395165,1759152646527,-3622.31,0.0002573,2]
[388395166,1759152646536,-2289.14,0.0002573,2]
[388395167,1759152646545,-914.18,0.0002573,2]
[388395168,1759152646553,-1622.22,0.0002573,2]
[388395169,1759152646561,-1024.97,0.0002573,2]
[388395170,1759152646567,-1349.31,0.0002573,2]
[388395171,1759152646575,-6397.07,0.0002573,2]
[388395172,1759152646583,-500.0,0.0002573,2]
[388395173,1759152646590,-480.0,0.0002573,2]
[388395174,1759152646598,-480.0,0.0002573,2]
[388395175,1759152646609,-1782.2,0.0002573,2]
[388395176,1759152646616,-480.0,0.0002573,2]
[388395177,1759152646625,-480.0,0.0002573,2]
[388395178,1759152646632,-480.0,0.00025731,2]
[388395179,1759152646640,-480.0,0.00025731,2]
[388395180,1759152646647,-480.0,0.00025731,2]
[388395181,1759152646656,-523.07,0.00025731,2]
[388395182,1759152646664,-529.19,0.00025731,2]
[388395183,1759152646672,-480.0,0.00025731,2]
[388395184,1759152646680,-1145.86,0.00025731,2]
[388395185,1759152646690,-662.02,0.00025731,2]
[388395186,1759152646831,-673.46,0.00025731,2]
[388395187,1759152646839,-501.03,0.00025731,2]
[388395188,1759152646847,-509.55,0.00025731,2]
[388395189,1759152646854,-507.34,0.00025731,2]
[388395190,1759152646860,-480.0,0.00025731,2]
[388395191,1759152646868,-480.0,0.00025731,2]
[388395192,1759152646875,-480.0,0.00025731,2]
[388395193,1759152646882,-480.0,0.00025731,2]
[388395194,1759152646893,-726.08,0.00025731,2]
[388395195,1759152646903,-480.0,0.00025731,2]
[388395196,1759152646912,-480.0,0.00025731,2]
[388395197,1759152646922,-544.82,0.00025731,2]
[388395198,1759152646932,-757.21,0.00025731,2]
[388395199,1759152646942,-480.0,0.00025731,2]
[388395200,1759152646952,-480.0,0.00025731,2]
[388395201,1759152646961,-480.0,0.00025731,2]
[388395202,1759152646971,-480.0,0.00025731,2]
[388395203,1759152646981,-576.12,0.00025731,2]
[388395204,1759152646991,-480.0,0.00025731,2]
[388395205,1759152647001,-480.0,0.00025731,2]
[388395206,1759152647011,-688.24,0.00025731,2]
[388395207,1759152647020,-480.0,0.00025731,2]
[388395208,1759152647030,-480.0,0.00025731,2]
[388395209,1759152647046,-480.0,0.00025731,2]
[388395210,1759152647058,-646.99,0.00025731,2]
[388395211,1759152647068,-480.0,0.00025731,2]
[388395212,1759152647078,-758.02,0.00025731,2]
[388395213,1759152647090,-694.73,0.00025731,2]
[388395214,1759152647099,-480.0,0.00025731,2]
[388395215,1759152647109,-480.0,0.00025731,2]
[388395216,1759152647119,-518.42,0.00025731,2]
[388395217,1759152647129,-480.0,0.00025731,2]
[388395218,1759152647139,-480.0,0.00025731,2]
[388395219,1759152647151,-480.0,0.00025731,2]
[388395220,1759152647161,-480.0,0.00025731,2]
[388395221,1759152647170,-480.0,0.00025731,2]
[388395222,1759152647180,-480.0,0.00025731,2]
[388395223,1759152647190,-528.08,0.00025731,2]
[388395224,1759152647199,-605.19,0.00025731,2]
[388395225,1759152647209,-755.42,0.00025731,2]
[388395226,1759152647218,-480.0,0.00025731,2]
[388395227,1759152647228,-480.0,0.00025731,2]
[388395228,1759152647238,-340.62037478,0.00025731,2]
[388395229,1759152647248,-480.0,0.00025731,2]
[388395230,1759152647258,-480.0,0.00025731,2]
[388395231,1759152647267,-480.0,0.00025731,2]
[388395232,1759152647276,-480.0,0.00025731,2]
[388395233,1759152647286,-480.0,0.00025731,2]
[388395234,1759152647295,-480.0,0.00025731,2]
[388395235,1759152647305,-480.0,0.00025731,2]
[388395236,1759152647315,-480.0,0.00025731,2]
[388395237,1759152647325,-921.11,0.00025731,2]
[388395238,1759152647334,-480.0,0.00025731,2]
[388395239,1759152647344,-480.0,0.00025731,2]
[388395240,1759152647353,-656.64,0.00025731,2]
[388395241,1759152647362,-1196.97,0.00025731,2]
[388395242,1759152647371,-410.88975738,0.00025731,2]
[388395243,1759152647381,-616.6,0.00025731,2]
[388395244,1759152647391,-719.22,0.00025731,2]
[388395245,1759152647400,-851.63,0.00025731,2]
[388395246,1759152647410,-485.38146765,0.00025731,2]
[388395247,1759152647420,-795.51,0.00025731,2]
[388395248,1759152647429,-501.32,0.00025731,2]
[388395249,1759152647439,-480.0,0.00025731,2]
[388395250,1759152647448,-977.66,0.00025731,2]
[388395251,1759152647458,-480.0,0.00025731,2]
[388395252,1759152647468,-480.0,0.00025731,2]
[388395253,1759152647477,-480.0,0.00025731,2]
[388395254,1759152647487,-740.07,0.00025731,2]
[388395255,1759152647496,-480.0,0.00025731,2]
[388395256,1759152647505,-480.0,0.00025731,2]
[388395257,1759152647515,-480.0,0.00025731,2]
[388395258,1759152647524,-519.27,0.00025731,2]
[388395259,1759152647534,-480.0,0.00025731,2]
[388395260,1759152647543,-480.0,0.00025731,2]
[388395261,1759152647553,-200.0,0.00025731,2]
[388395262,1759152647563,-575.84,0.00025731,2]
[388395263,1759152647573,-480.0,0.00025731,2]
[388395264,1759152647582,-151.0,0.00025731,7]
[388395265,1759152647593,-195.548761,0.00025731,7]
[388395266,1759152647603,-151.0,0.00025731,7]
[388395267,1759152647615,-628.22,0.00025731,2]
[388395268,1759152647625,-480.0,0.00025731,2]
[388395269,1759152647634,-151.0,0.00025731,7]
[388395270,1759152647644,-480.0,0.00025731,2]
[388395271,1759152647654,-151.0,0.00025731,7]
[388395272,1759152647663,-151.0,0.00025731,7]
[388395273,1759152647672,-480.0,0.00025731,2]
[388395274,1759152647685,-673.0,0.00025731,2]
[388395275,1759152647694,-969.69,0.00025731,2]
[388395276,1759152647703,-480.0,0.00025731,2]
[388395277,1759152647712,-480.0,0.00025731,2]
[388395278,1759152647721,-151.0,0.00025731,7]
[388395279,1759152647731,-151.0,0.00025731,7]
[388395280,1759152647740,-151.0,0.00025731,7]
[388395281,1759152647750,-151.0,0.00025731,7]
[388395282,1759152647759,-151.0,0.00025731,7]
[388395283,1759152647769,-151.0,0.00025731,7]
[388395284,1759152647778,-480.0,0.00025731,2]
[388395285,1759152647788,-484.17307533,0.00025731,2]
[388395286,1759152647797,-151.0,0.00025731,7]
[388395287,1759152647807,-480.0,0.00025731,2]
[388395288,1759152647816,-151.0,0.00025731,7]
[388395289,1759152647825,-480.0,0.00025731,2]
[388395290,1759152647835,-1803.35,0.00025731,2]
[388395291,1759152647844,-151.0,0.00025731,7]
[388395292,1759152647854,-151.0,0.00025731,7]
[388395293,1759152647863,-161.185824,0.00025731,7]
[388395294,1759152647872,-480.0,0.00025731,2]
[388395295,1759152647882,-151.0,0.00025731,7]
[388395296,1759152647891,-242.679734,0.00025731,7]
[388395297,1759152647901,-151.0,0.00025731,7]
[388395298,1759152647910,-480.0,0.00025731,2]
[388395299,1759152647920,-151.0,0.00025731,7]
[388395300,1759152647929,-151.0,0.00025731,7]
[388395301,1759152647939,-690.67,0.00025731,2]
[388395302,1759152647948,-497.08573525,0.00025731,2]
[388395303,1759152647958,-480.0,0.00025731,2]
[388395304,1759152647967,-480.0,0.00025731,2]
[388395305,1759152647976,-673.07,0.00025731,2]
[388395306,1759152647986,-151.0,0.00025731,7]
[388395307,1759152647996,-500.0,0.00025731,2]
[388395308,1759152648007,-559.59367801,0.00025731,2]
[388395309,1759152648020,-151.0,0.00025731,7]
[388395310,1759152648029,-151.0,0.00025731,7]
[388395311,1759152648039,-159.398646,0.00025731,7]
[388395312,1759152648049,-480.0,0.00025731,2]
[388395313,1759152648061,-204.257461,0.00025731,7]
[388395314,1759152648071,-151.0,0.00025731,7]
[388395315,1759152648080,-204.257461,0.00025731,7]
[388395316,1759152648090,-480.0,0.00025731,2]
[388395317,1759152648100,-611.76,0.00025731,2]
[388395318,1759152648110,-204.257461,0.00025731,7]
[388395319,1759152648120,-204.257461,0.00025731,7]
[388395320,1759152648129,-151.0,0.00025731,7]
[388395321,1759152648139,-151.0,0.00025731,7]
[388395322,1759152648151,-486.91509141,0.00025731,2]
[388395323,1759152648160,-805.98,0.00025731,2]
[388395324,1759152648170,-480.0,0.00025731,2]
[388395325,1759152648179,-675.92,0.00025731,2]
[388395326,1759152648189,-351.56321253,0.00025731,2]
[388395327,1759152648198,-553.44,0.00025731,2]
[388395328,1759152648208,-151.0,0.00025731,7]
[388395329,1759152648218,-523.2,0.00025731,2]
[388395330,1759152648227,-151.0,0.00025731,7]
[388395331,1759152648237,-151.0,0.00025731,7]
[388395332,1759152648247,-573.84,0.00025731,2]
[388395333,1759152648256,-480.0,0.00025731,2]
[388395334,1759152648265,-151.0,0.00025731,7]
[388395335,1759152648275,-743.83,0.00025731,2]
[388395336,1759152648284,-707.92,0.00025731,2]
[388395337,1759152648294,-480.0,0.00025731,2]
[388395338,1759152648306,-480.0,0.00025731,2]
[388395339,1759152648315,-527.56,0.00025731,2]
[388395340,1759152648326,-693.37,0.00025731,2]
[388395341,1759152648336,-151.0,0.00025731,7]
[388395342,1759152648346,-182.062784,0.00025731,7]
[388395343,1759152648356,-480.0,0.00025731,2]
[388395344,1759152648366,-480.0,0.00025731,2]
[388395345,1759152648375,-480.0,0.00025731,2]
[388395346,1759152648386,-480.0,0.00025731,2]
[388395347,1759152648396,-480.0,0.00025731,2]
[388395348,1759152648406,-480.0,0.00025731,2]
[388395349,1759152648416,-151.0,0.00025731,7]
[388395350,1759152648425,-184.166231,0.00025731,7]
[388395351,1759152648435,-393.44743604,0.00025731,2]
[388395352,1759152648444,-480.0,0.00025731,2]
[388395353,1759152648454,-802.5,0.00025731,2]
[388395354,1759152648464,-151.0,0.00025731,7]
[388395355,1759152648474,-480.0,0.00025731,2]
[388395356,1759152648484,-274.87894,0.00025731,7]
[388395357,1759152648494,-1871.544826,0.00025731,7]
[388395358,1759152648504,-480.0,0.00025731,2]
[388395359,1759152648514,-1871.544826,0.00025731,7]
[388395360,1759152648524,-151.0,0.00025731,7]
[388395361,1759152648534,-1871.544826,0.00025731,7]
[388395362,1759152648543,-267.025641,0.00025731,7]
[388395363,1759152648555,-1871.544826,0.00025731,7]
[388395364,1759152648564,-480.0,0.00025731,2]
[388395365,1759152648575,-480.0,0.00025731,2]
[388395366,1759152648584,-151.0,0.00025731,7]
[388395367,1759152648594,-222.14693634,0.00025731,2]
[388395368,1759152648606,-151.0,0.00025731,7]
[388395369,1759152648617,-171.71214021,0.00025731,2]
[388395370,1759152648626,-480.0,0.00025731,2]
[388395371,1759152648636,-151.0,0.00025731,7]
[388395372,1759152648646,-624.26926609,0.00025731,2]
[388395373,1759152648658,-480.0,0.00025731,2]
[388395374,1759152648668,-480.0,0.00025731,2]
[388395375,1759152648678,-332.976035,0.00025731,7]
[388395376,1759152648689,-332.976035,0.00025731,7]
[388395377,1759152648699,-1802.02,0.00025731,2]
[388395378,1759152648709,-332.976035,0.00025731,7]
[388395379,1759152648718,-480.0,0.00025731,2]
[388395380,1759152648727,-332.976035,0.00025731,7]
[388395381,1759152648736,-597.74,0.00025731,2]
[388395382,1759152648746,-480.0,0.00025731,2]
[388395383,1759152648755,-151.899556,0.00025731,7]
[388395384,1759152648764,-151.0,0.00025731,2]
[388395385,1759152648774,-151.0,0.00025731,7]
[388395386,1759152648783,-194.606002,0.00025731,7]
[388395387,1759152648793,-1251.25,0.00025731,2]
[388395388,1759152648802,-480.0,0.00025731,2]
[388395389,1759152648814,-480.0,0.00025731,2]
[388395390,1759152648823,-194.606002,0.00025731,7]
[388395391,1759152648832,-183.43,0.00025732,5]
[388395392,1759152648842,-711.55,0.00025732,2]
[388395393,1759152648852,-480.0,0.00025732,2]
[388395394,1759152648861,-480.0,0.00025732,2]
[388395395,1759152648871,-503.05,0.00025732,2]
[388395396,1759152648881,-668.02,0.00025732,2]
[388395397,1759152648891,-480.0,0.00025742,2]
[388395398,1759152648900,-825.72,0.00025742,2]
[388395399,1759152648910,-480.0,0.00025742,2]
[388395400,1759152648920,-512.18,0.00025742,2]
[388395401,1759152648929,-510.92,0.00025742,2]
[388395402,1759152648939,-480.0,0.00025742,2]
[388395403,1759152648948,-480.0,0.00025742,2]
[388395404,1759152648958,-480.0,0.00025742,2]
[388395405,1759152648967,-1335.3,0.00025742,2]
[388395406,1759152648977,-480.0,0.00025742,2]
[388395407,1759152648987,-1154.38,0.00025742,2]
[388395408,1759152648996,-496.8,0.00025742,2]
[388395409,1759152649006,-851.79,0.00025742,2]
[388395410,1759152649015,-480.0,0.00025742,2]
[388395411,1759152649025,-883.36,0.00025742,2]
[388395412,1759152649035,-495.7,0.00025742,2]
[388395413,1759152649044,-834.55,0.00025742,2]
[388395414,1759152649056,-480.0,0.00025742,2]
[388395415,1759152649066,-817.2,0.00025742,2]
[388395416,1759152649076,-480.0,0.00025742,2]
[388395417,1759152649088,-2490.82,0.00025742,2]
[388395418,1759152649098,-756.35,0.00025742,2]
[388395419,1759152649108,-776.92,0.00025742,2]
[388395420,1759152649118,-681.67,0.00025742,2]
[388395421,1759152649128,-835.45,0.00025742,2]
[388395422,1759152649138,-151.0,0.00025742,7]
[388395423,1759152649148,-195.152204,0.00025742,7]
[388395424,1759152649158,-480.0,0.00025742,2]
[388395425,1759152649167,-804.61,0.00025742,2]
[388395426,1759152649177,-322.24352226,0.00025742,2]
[388395427,1759152649186,-687.34,0.00025742,2]
[388395428,1759152649196,-151.0,0.00025742,7]
[388395429,1759152649206,-2610.33,0.00025742,2]
[388395430,1759152649216,-151.0,0.00025742,7]
[388395431,1759152649225,-480.0,0.00025742,2]
[388395432,1759152649235,-151.0,0.00025742,7]
[388395433,1759152649245,-168.933648,0.00025742,7]
[388395434,1759152649254,-176.751828,0.00025742,7]
[388395435,1759152649263,-176.751828,0.00025742,7]
[388395436,1759152649273,-176.751828,0.00025742,7]
[388395437,1759152649282,-151.0,0.00025742,7]
[388395438,1759152649292,-176.751828,0.00025742,7]
[388395439,1759152649301,-151.0,0.00025742,7]
[388395440,1759152649312,-151.0,0.00025742,7]
[388395441,1759152649322,-151.0,0.00025742,7]
[388395442,1759152649331,-151.0,0.00025742,7]
[388395443,1759152649341,-753.62,0.00025742,2]
[388395444,1759152649351,-151.0,0.00025742,7]
[388395445,1759152649361,-737.43,0.00025742,2]
[388395446,1759152649371,-151.0,0.00025742,7]
[388395447,1759152649380,-480.0,0.00025742,2]
[388395448,1759152649390,-1382.82,0.00025742,2]
[388395449,1759152649400,-669.88,0.00025742,2]
[388395450,1759152649410,-1041.04,0.00025742,2]
[388395451,1759152649419,-151.0,0.00025742,7]
[388395452,1759152649429,-480.0,0.00025742,2]
[388395453,1759152649439,-480.0,0.00025742,2]
[388395454,1759152649448,-753.11,0.00025742,2]
[388395455,1759152649458,-480.0,0.00025742,2]
[388395456,1759152649467,-480.0,0.00025742,2]
[388395457,1759152649476,-885.6,0.00025742,2]
[388395458,1759152649487,-2398.22,0.00025742,2]
[388395459,1759152649496,-612.5,0.00025742,2]
[388395460,1759152649505,-480.0,0.00025742,2]
[388395461,1759152649515,-672.24,0.00025742,2]
[388395462,1759152649525,-154.72743239,0.00025747,2]
[388395463,1759152649535,-9540.81142647,0.00025768,2]
[388395464,1759152649544,-500.0,0.00025773,2]
[388395465,1759152649555,-500.0,0.00025773,2]
[388395466,1759152649564,-500.0,0.00025773,2]
[388395467,1759152649574,-507.40284838,0.00025773,2]
[388395468,1759152649584,-487.84564095,0.00025773,2]
[388395469,1759152649594,-400.0,0.00025773,2]
[388395470,1759152649605,-500.0,0.00025773,2]
[388395471,1759152649616,-500.0,0.00025773,2]
[388395472,1759152649627,-500.0,0.00025773,2]
[388395473,1759152649636,-585.41442867,0.00025773,2]
[388395474,1759152649646,-500.0,0.00025773,2]
[388395475,1759152649657,-500.0,0.00025773,2]
[388395476,1759152649667,-171.27725486,0.00025773,2]
[388395477,1759152649676,-412.82600998,0.00025773,2]
[388395478,1759152649688,-500.0,0.00025773,2]
[388395479,1759152649697,-509.3829313,0.00025773,2]
[388395480,1759152649707,-449.17884857,0.00025773,2]
[388395481,1759152649715,-500.0,0.00025773,2]
[388395482,1759152649725,-500.0,0.00025773,2]
[388395483,1759152649734,-500.0,0.00025773,2]
[388395484,1759152649744,-500.0,0.00025773,2]
[388395485,1759152649753,-500.0,0.00025773,2]
[388395486,1759152649762,-500.0,0.00025773,2]
[388395487,1759152649771,-500.0,0.00025773,2]
[388395488,1759152649781,-500.0,0.00025773,2]
[388395489,1759152649790,-500.0,0.00025773,2]
[388395490,1759152649799,-500.0,0.00025773,2]
[388395491,1759152649811,-500.0,0.00025773,2]
[388395492,1759152649970,-150.0,0.00025773,2]
[388395493,1759152649982,-151.0,0.000258,11]
[388395494,1759152649991,-151.0,0.000258,16]
[388395495,1759152650002,-480.0,0.00025816,2]
[388395496,1759152650012,-480.0,0.00025816,2]
[388395497,1759152650023,-480.0,0.00025816,2]
[388395498,1759152650032,-480.0,0.00025816,2]
[388395499,1759152650042,-676.72,0.00025816,2]
[388395500,1759152650056,-480.0,0.00025816,2]
[388395501,1759152650067,-151.0,0.00025816,7]
[388395502,1759152650078,-151.0,0.00025816,7]
[388395503,1759152650090,-151.0,0.00025816,7]
[388395504,1759152650101,-153.732048,0.00025816,7]
[388395505,1759152650111,-151.0,0.00025816,7]
[388395506,1759152650121,-151.0,0.00025816,7]
[388395507,1759152650131,-151.0,0.00025816,7]
[388395508,1759152650141,-151.0,0.00025816,7]
[388395509,1759152650151,-151.0,0.00025816,7]
[388395510,1759152650160,-233.87608454,0.00025816,7]